[Event "SWE-ch Junior 2019"]
[Site "Eskilstuna"]
[Date "2019.07.06"]
[Round "1.1"]
[White "Pantzar, Milton"]
[Black "Carlsson, Ludvig"]
[Result "1/2-1/2"]
[ECO "B23"]
[WhiteElo "2357"]
[BlackElo "2218"]
[Annotator "NA"]
[PlyCount "79"]
[EventDate "2019.07.06"]
[EventType "tourn"]
[EventCountry "SWE"]
[SourceTitle "playchess.com"]
[Source "ChessBase"]
[SourceQuality "1"]
[TimeControl "40/5400+30:1800+30"]

1. e4 {[%emt 0:00:00]} c5 {[%emt 0:00:32]} 2. Nc3 {[%emt 0:00:16]} g6 {[%emt 0:04:19]} 3. Bc4 {[%emt 0:01:11]} Nc6 {[%emt 0:00:29]} 4. d3 {[%emt 0:01:20]} Bg7 {[%emt 0:03:37]} 5. a3 {[%emt 0:00:26]} d6 {[%emt 0:09:58]} 6. Nf3 {[%emt 0:05:22]} Nf6 {[%emt 0:02:07]} 7. h3 {[%emt 0:01:46]} O-O {[%emt 0:00:21]} 8. O-O {[%emt 0:00:53]} a6 {[%emt 0:09:21]} 9. Ba2 {[%emt 0:02:05]} b5 {[%emt 0:18:01]} 10. Be3 {[%emt 0:04:02]} Nd7 {[%emt 0:00:33]} 11. Qd2 {[%emt 0:27:53]} Nd4 {[%emt 0:07:02]} 12. Nh2 {[%emt 0:02:59]} Kh8 {[%emt 0:04:28]} 13. Nd1 {[%emt 0:04:21]} f5 {[%emt 0:00:45]} 14. c3 {[%emt 0:05:31]} Nc6 {[%emt 0:00:09]} 15. exf5 {[%emt 0:06:12]} gxf5 {[%emt 0:01:49]} 16. Bh6 {[%emt 0:03:29]} Bxh6 {[%emt 0:05:04]} 17. Qxh6 {[%emt 0:00:03]} Nde5 {[%emt 0:00:08]} 18. f4 {[%emt 0:05:20]} Nxd3 {[%emt 0:01:57]} 19. Bd5 {[%emt 0:07:18]} Rf6 {[%emt 0:02:09]} 20. Qh5 {[%emt 0:03:38]} c4 {[%emt 0:00:25]} 21. Bxc6 {[%emt 0:02:37]} Qb6+ {[%emt 0:00:09]} 22. Nf2 {[%emt 0:00:23]} Qxc6 {[%emt 0:00:26]} 23. Nxd3 {[%emt 0:01:22]} cxd3 {[%emt 0:00:10]} 24. Rad1 {[%emt 0:03:51]} Bb7 {[%emt 0:00:38]} 25. Nf3 {[%emt 0:00:36]} Rg8 {[%emt 0:10:46]} 26. Rxd3 {[%emt 0:02:05]} Qe4 {[%emt 0:00:05]} 27. Rd4 {[%emt 0:06:34]} Qe3+ {[%emt 0:00:16]} 28. Rf2 {[%emt 0:01:13]} Rfg6 {[%emt 0:00:30]} 29. Ng5 {[%emt 0:00:30]} Rxg5 {[%emt 0:08:59]} 30. fxg5 {[%emt 0:00:01]} Rxg5 {[%emt 0:00:09]} 31. Qe2 {[%emt 0:01:21]} Rxg2+ {[%emt 0:00:03]} 32. Kf1 {[%emt 0:00:04]} Qc1+ {[%emt 0:00:04]} 33. Rd1 {[%emt 0:00:46]} Rxf2+ {[%emt 0:00:05]} 34. Kxf2 {[%emt 0:00:03]} Qf4+ {[%emt 0:00:06]} 35. Ke1 {[%emt 0:00:27]} Bf3 {[%emt 0:00:31]} 36. Qxe7 {[%emt 0:00:41]} Qg3+ {[%emt 0:00:07]} 37. Kd2 {[%emt 0:00:32]} Bxd1 {[%emt 0:00:26]} 38. Qf8+ {[%emt 0:00:28]} Qg8 {[%emt 0:00:06]} 39. Qf6+ {[%emt 0:00:02]} Qg7 {[%emt 0:00:07]} 40. Qd8+ {[%emt 0:00:03]} 1/2-1/2

[Event "SWE-ch Junior 2019"]
[Site "Eskilstuna"]
[Date "2019.07.06"]
[Round "1.2"]
[White "Johnson, Daniel"]
[Black "Sundin, Emanuel"]
[Result "1/2-1/2"]
[ECO "A65"]
[WhiteElo "2212"]
[BlackElo "2134"]
[Annotator "NA"]
[PlyCount "32"]
[EventDate "2019.07.06"]
[EventType "tourn"]
[EventCountry "SWE"]
[SourceTitle "playchess.com"]
[Source "ChessBase"]
[SourceQuality "1"]
[TimeControl "40/5400+30:1800+30"]

1. d4 {[%emt 0:00:00]} Nf6 {[%emt 0:00:01]} 2. c4 {[%emt 0:00:25]} g6 {[%emt 0:00:29]} 3. Nc3 {[%emt 0:00:35]} Bg7 {[%emt 0:00:24]} 4. e4 {[%emt 0:01:44]} d6 {[%emt 0:00:29]} 5. f3 {[%emt 0:00:42]} O-O {[%emt 0:01:37]} 6. Nge2 {[%emt 0:00:13]} c5 {[%emt 0:00:25]} 7. d5 {[%emt 0:01:37]} e6 {[%emt 0:01:12]} 8. Ng3 {[%emt 0:01:56]} exd5 {[%emt 0:00:31]} 9. cxd5 {[%emt 0:00:07]} h5 {[%emt 0:01:36]} 10. Bg5 {[%emt 0:05:16]} Qb6 {[%emt 0:03:37]} 11. Qd2 {[%emt 0:01:19]} Nh7 {[%emt 0:00:40]} 12. Be3 {[%emt 0:00:52]} Nd7 {[%emt 0:01:47]} 13. Nge2 {[%emt 0:40:16]} Ne5 {[%emt 0:04:34]} 14. Nf4 {[%emt 0:01:37]} a6 {[%emt 0:02:35]} 15. Be2 {[%emt 0:06:05]} Qa5 {[%emt 0:02:05]} 16. O-O {[%emt 0:11:47]} b5 {[%emt 0:01:09]} 1/2-1/2

[Event "SWE-ch Junior 2019"]
[Site "Eskilstuna"]
[Date "2019.07.06"]
[Round "1.3"]
[White "Petersson, Baldur Teodor"]
[Black "Sorensen, Hampus"]
[Result "1-0"]
[ECO "C54"]
[WhiteElo "2179"]
[BlackElo "2352"]
[Annotator "NA"]
[PlyCount "111"]
[EventDate "2019.07.06"]
[EventType "tourn"]
[EventCountry "SWE"]
[SourceTitle "playchess.com"]
[Source "ChessBase"]
[SourceQuality "1"]
[TimeControl "40/5400+30:1800+30"]

1. e4 {[%emt 0:00:00]} e5 {[%emt 0:00:00]} 2. Nf3 {[%emt 0:00:00]} Nc6 {[%emt 0:00:00]} 3. Bc4 {[%emt 0:00:00]} Bc5 {[%emt 0:00:34]} 4. c3 {[%emt 0:00:00]} Nf6 {[%emt 0:00:38]} 5. d3 {[%emt 0:00:02]} d6 {[%emt 0:02:43]} 6. O-O {[%emt 0:00:58]} a5 {[%emt 0:05:50]} 7. a4 {[%emt 0:12:10]} O-O {[%emt 0:02:53]} 8. Nbd2 {[%emt 0:01:55]} h6 {[%emt 0:05:07]} 9. h3 {[%emt 0:00:27]} Be6 {[%emt 0:03:06]} 10. Re1 {[%emt 0:04:13]} Qb8 {[%emt 0:07:20]} 11. Nh4 {[%emt 0:09:11]} Ne7 {[%emt 0:05:18]} 12. Qf3 {[%emt 0:06:49]} Nh7 {[%emt 0:02:52]} 13. Nf1 {[%emt 0:05:02]} Qc8 {[%emt 0:06:47]} 14. Ng3 {[%emt 0:03:13]} c6 {[%emt 0:08:31]} 15. Nhf5 {[%emt 0:04:21]} Bxf5 {[%emt 0:04:30]} 16. exf5 {[%emt 0:04:00]} d5 {[%emt 0:04:57]} 17. Bb3 {[%emt 0:00:40]} Bd6 {[%emt 0:00:54]} 18. f6 {[%emt 0:04:29]} Nxf6 {[%emt 0:00:06]} 19. Bxh6 {[%emt 0:00:07]} Nh7 {[%emt 0:02:58]} 20. Bd2 {[%emt 0:09:29]} f5 {[%emt 0:02:32]} 21. c4 {[%emt 0:01:38]} e4 {[%emt 0:11:32]} 22. Qe2 {[%emt 0:01:16]} Kh8 {[%emt 0:05:23]} 23. cxd5 {[%emt 0:03:37]} cxd5 {[%emt 0:00:16]} 24. Nh5 {[%emt 0:01:15]} Be5 {[%emt 0:03:31]} 25. Rac1 {[%emt 0:06:20]} Qb8 {[%emt 0:02:31]} 26. dxe4 {[%emt 0:00:27]} fxe4 {[%emt 0:00:38]} 27. Bc3 {[%emt 0:01:16]} Ra6 {[%emt 0:02:07]} 28. Qg4 {[%emt 0:02:25]} Rg6 {[%emt 0:01:52]} 29. Qd7 {[%emt 0:00:31]} Bxc3 {[%emt 0:00:54]} 30. Rxc3 {[%emt 0:01:56]} Qe5 {[%emt 0:00:11]} 31. Ng3 {[%emt 0:05:15]} Nf6 {[%emt 0:06:07]} 32. Qc7 {[%emt 0:01:00]} Qxc7 {[%emt 0:02:15]} 33. Rxc7 {[%emt 0:00:05]} Nc6 {[%emt 0:00:06]} 34. Rxb7 {[%emt 0:00:49]} Ne5 {[%emt 0:01:16]} 35. Rb5 {[%emt 0:02:14]} Nd3 {[%emt 0:00:04]} 36. Re2 {[%emt 0:01:07]} Nf4 {[%emt 0:00:49]} 37. Re1 {[%emt 0:00:10]} Nd3 {[%emt 0:00:22]} 38. Re2 {[%emt 0:00:06]} Nf4 {[%emt 0:00:17]} 39. Re1 {[%emt 0:00:14]} d4 {[%emt 0:00:56]} 40. Rf5 {[%emt 0:00:52]} Nd3 {[%emt 0:00:21]} 41. Rxe4 {[%emt 0:30:29]} Nc1 {[%emt 0:08:38]} 42. Rh4+ {[%emt 0:00:00]} Rh6 {[%emt 0:00:26]} 43. Rxh6+ gxh6 {[%emt 0:00:01]} 44. Bd1 {[%emt 0:00:00]} Re8 {[%emt 0:01:21]} 45. Rxf6 {[%emt 0:00:00]} Re1+ {[%emt 0:00:02]} 46. Kh2 {[%emt 0:00:00]} Rxd1 {[%emt 0:00:01]} 47. Rxh6+ {[%emt 0:00:00]} Kg8 {[%emt 0:00:01]} 48. Rd6 {[%emt 0:00:00]} d3 {[%emt 0:00:32]} 49. Ne4 {[%emt 0:00:00]} Nb3 {[%emt 0:03:55]} 50. h4 {[%emt 0:00:00]} d2 {[%emt 0:00:36]} 51. Rd3 {[%emt 0:00:00]} Ra1 {[%emt 0:04:30]} 52. Nxd2 {[%emt 0:00:00]} Nxd2 {[%emt 0:00:03]} 53. Rxd2 {[%emt 0:00:00]} Rxa4 {[%emt 0:00:02]} 54. Kg3 {[%emt 0:00:00]} Rb4 {[%emt 0:00:04]} 55. Rd5 {[%emt 0:00:00]} Rb3+ {[%emt 0:00:04]} 56. f3 {[%emt 0:00:00]} 1-0

[Event "SWE-ch Junior 2019"]
[Site "Eskilstuna"]
[Date "2019.07.06"]
[Round "1.4"]
[White "Rasti, Arvin"]
[Black "Joensson, Jacob"]
[Result "1/2-1/2"]
[ECO "D36"]
[WhiteElo "2220"]
[BlackElo "1981"]
[Annotator "NA"]
[PlyCount "123"]
[EventDate "2019.07.06"]
[EventType "tourn"]
[EventCountry "SWE"]
[SourceTitle "playchess.com"]
[Source "ChessBase"]
[SourceQuality "1"]
[TimeControl "40/5400+30:1800+30"]

1. d4 {[%emt 0:00:00]} Nf6 {[%emt 0:00:00]} 2. c4 {[%emt 0:00:06]} e6 {[%emt 0:00:00]} 3. Nc3 {[%emt 0:00:10]} d5 {[%emt 0:00:00]} 4. cxd5 {[%emt 0:00:50]} exd5 {[%emt 0:00:05]} 5. Bg5 {[%emt 0:00:06]} c6 {[%emt 0:00:09]} 6. Qc2 {[%emt 0:00:06]} Be7 {[%emt 0:00:07]} 7. e3 {[%emt 0:00:07]} Nbd7 {[%emt 0:00:10]} 8. Bd3 {[%emt 0:00:13]} Nh5 {[%emt 0:00:11]} 9. Bxe7 {[%emt 0:00:08]} Qxe7 {[%emt 0:00:07]} 10. Nge2 {[%emt 0:00:06]} Nb6 {[%emt 0:01:09]} 11. O-O-O {[%emt 0:06:37]} Be6 {[%emt 0:13:07]} 12. Kb1 {[%emt 0:08:00]} O-O-O {[%emt 0:02:47]} 13. Rc1 {[%emt 0:06:04]} Kb8 {[%emt 0:04:34]} 14. Rhg1 {[%emt 0:12:07]} g6 {[%emt 0:01:52]} 15. g3 {[%emt 0:03:32]} Ng7 {[%emt 0:02:24]} 16. Na4 {[%emt 0:01:28]} Nxa4 {[%emt 0:03:04]} 17. Qxa4 {[%emt 0:00:06]} Bf5 {[%emt 0:00:12]} 18. Rc3 {[%emt 0:07:57]} Bxd3+ {[%emt 0:20:35]} 19. Rxd3 {[%emt 0:00:07]} Qe4 {[%emt 0:00:08]} 20. Qc2 {[%emt 0:00:34]} Nf5 {[%emt 0:00:39]} 21. Nc3 {[%emt 0:00:45]} Qe7 {[%emt 0:01:10]} 22. Ka1 {[%emt 0:05:24]} h5 {[%emt 0:09:39]} 23. Na4 {[%emt 0:01:44]} Nd6 {[%emt 0:05:51]} 24. Rb3 {[%emt 0:03:52]} Ka8 {[%emt 0:09:43]} 25. Qc5 {[%emt 0:03:48]} Rhe8 {[%emt 0:05:37]} 26. Qc2 {[%emt 0:10:59]} Qe4 {[%emt 0:05:40]} 27. Qd2 {[%emt 0:00:53]} Nc4 {[%emt 0:01:59]} 28. Qb4 {[%emt 0:01:45]} Qe7 {[%emt 0:00:46]} 29. Qc3 {[%emt 0:00:33]} Rd7 {[%emt 0:00:39]} 30. Rc1 {[%emt 0:01:19]} Rc7 {[%emt 0:01:40]} 31. Nc5 {[%emt 0:01:54]} Qf6 {[%emt 0:02:41]} 32. Qc2 {[%emt 0:03:49]} Nd6 {[%emt 0:01:08]} 33. Nd3 {[%emt 0:04:33]} Qf5 {[%emt 0:01:33]} 34. Qe2 {[%emt 0:01:31]} Rce7 {[%emt 0:01:24]} 35. Rc5 {[%emt 0:01:34]} Nc4 {[%emt 0:01:42]} 36. Rc3 {[%emt 0:01:22]} Qe4 {[%emt 0:00:35]} 37. b3 {[%emt 0:02:36]} Nd6 {[%emt 0:00:44]} 38. Qd1 {[%emt 0:03:08]} Qg2 {[%emt 0:01:49]} 39. Rc2 {[%emt 0:00:54]} Qxh2 {[%emt 0:00:34]} 40. Nb4 {[%emt 0:03:29]} Qh3 {[%emt 0:02:23]} 41. Qc1 {[%emt 0:32:54]} Kb8 {[%emt 0:06:51]} 42. Qa3 {[%emt 0:00:00]} Qd7 {[%emt 0:05:16]} 43. Qa4 {[%emt 0:00:00]} Rc8 {[%emt 0:03:43]} 44. Rc1 {[%emt 0:00:00]} f6 {[%emt 0:02:40]} 45. Qa3 {[%emt 0:00:00]} g5 {[%emt 0:00:59]} 46. Rh1 {[%emt 0:00:00]} Rh7 {[%emt 0:00:22]} 47. Qc1 {[%emt 0:00:00]} h4 {[%emt 0:01:25]} 48. Qg1 {[%emt 0:00:00]} Ne4 {[%emt 0:01:41]} 49. Rc1 {[%emt 0:00:00]} hxg3 {[%emt 0:01:16]} 50. Rxh7 {[%emt 0:00:00]} Qxh7 {[%emt 0:00:15]} 51. f3 {[%emt 0:00:00]} Qh2 {[%emt 0:03:52]} 52. fxe4 {[%emt 0:02:12]} dxe4 {[%emt 0:00:58]} 53. Qxh2 gxh2 {[%emt 0:00:07]} 54. Rh1 {[%emt 0:00:00]} Rh8 {[%emt 0:00:15]} 55. Nc2 {[%emt 0:00:00]} f5 {[%emt 0:02:23]} 56. Kb2 {[%emt 0:00:00]} f4 {[%emt 0:00:51]} 57. exf4 {[%emt 0:00:00]} gxf4 {[%emt 0:00:08]} 58. Kc1 {[%emt 0:00:00]} Kc7 {[%emt 0:01:17]} 59. Kd2 {[%emt 0:00:00]} Rh3 {[%emt 0:04:18]} 60. Ne1 {[%emt 0:00:00]} a5 {[%emt 0:01:04]} 61. Ke2 {[%emt 0:00:00]} a4 {[%emt 0:00:25]} 62. Kf1 {[%emt 0:00:52]} 1/2-1/2

[Event "SWE-ch Junior 2019"]
[Site "Eskilstuna"]
[Date "2019.07.07"]
[Round "2.1"]
[White "Carlsson, Ludvig"]
[Black "Sundin, Emanuel"]
[Result "1-0"]
[ECO "A80"]
[WhiteElo "2218"]
[BlackElo "2134"]
[Annotator "NA"]
[PlyCount "57"]
[EventDate "2019.07.06"]
[EventType "tourn"]
[EventCountry "SWE"]
[SourceTitle "playchess.com"]
[Source "ChessBase"]
[SourceQuality "1"]
[TimeControl "40/5400+30:1800+30"]

1. d4 {[%emt 0:00:00]} f5 {[%emt 0:01:00]} 2. Bf4 {[%emt 0:02:13]} Nf6 {[%emt 0:02:20]} 3. e3 {[%emt 0:00:18]} e6 {[%emt 0:04:55]} 4. Bd3 {[%emt 0:04:49]} b6 {[%emt 0:03:53]} 5. h3 {[%emt 0:12:07]} Bb7 {[%emt 0:02:57]} 6. Nf3 {[%emt 0:00:29]} Be7 {[%emt 0:03:02]} 7. c3 {[%emt 0:02:24]} d6 {[%emt 0:13:58]} 8. Bh2 {[%emt 0:13:25]} Ne4 {[%emt 0:06:27]} 9. Nbd2 {[%emt 0:03:52]} Bf6 {[%emt 0:03:28]} 10. O-O {[%emt 0:01:59]} O-O {[%emt 0:01:40]} 11. Qc2 {[%emt 0:02:26]} Nxd2 {[%emt 0:00:56]} 12. Nxd2 {[%emt 0:00:09]} Nd7 {[%emt 0:07:49]} 13. e4 {[%emt 0:03:58]} g6 {[%emt 0:12:35]} 14. Qb3 {[%emt 0:03:27]} d5 {[%emt 0:09:17]} 15. exf5 {[%emt 0:06:26]} exf5 {[%emt 0:00:10]} 16. Be2 {[%emt 0:00:34]} c5 {[%emt 0:05:44]} 17. Bf3 {[%emt 0:00:28]} cxd4 {[%emt 0:02:36]} 18. Bxd5+ {[%emt 0:04:50]} Bxd5 {[%emt 0:00:05]} 19. Qxd5+ {[%emt 0:00:08]} Kh8 {[%emt 0:00:20]} 20. cxd4 {[%emt 0:03:06]} Nc5 {[%emt 0:06:55]} 21. Qxd8 {[%emt 0:00:21]} Raxd8 {[%emt 0:00:12]} 22. dxc5 {[%emt 0:03:31]} Rxd2 {[%emt 0:00:08]} 23. c6 {[%emt 0:00:02]} Rc8 {[%emt 0:04:37]} 24. c7 {[%emt 0:00:22]} g5 {[%emt 0:03:41]} 25. Rad1 {[%emt 0:02:11]} Rc2 {[%emt 0:01:51]} 26. Be5 {[%emt 0:02:07]} Kg7 {[%emt 0:01:49]} 27. Rd7+ {[%emt 0:00:06]} Kg6 {[%emt 0:00:26]} 28. Rd6 {[%emt 0:00:06]} Rf8 {[%emt 0:00:32]} 29. Bc3 {[%emt 0:00:04]} 1-0

[Event "SWE-ch Junior 2019"]
[Site "Eskilstuna"]
[Date "2019.07.07"]
[Round "2.2"]
[White "Pantzar, Milton"]
[Black "Petersson, Baldur Teodor"]
[Result "0-1"]
[ECO "E71"]
[WhiteElo "2357"]
[BlackElo "2179"]
[Annotator "NA"]
[PlyCount "248"]
[EventDate "2019.07.06"]
[EventType "tourn"]
[EventCountry "SWE"]
[SourceTitle "playchess.com"]
[Source "ChessBase"]
[SourceQuality "1"]
[TimeControl "40/5400+30:1800+30"]

1. d4 {[%emt 0:00:00]} Nf6 {[%emt 0:01:45]} 2. c4 {[%emt 0:00:00]} g6 {[%emt 0:00:59]} 3. Nc3 {[%emt 0:00:01]} Bg7 {[%emt 0:00:08]} 4. e4 {[%emt 0:00:07]} d6 {[%emt 0:00:05]} 5. h3 {[%emt 0:01:07]} O-O {[%emt 0:00:56]} 6. Be3 {[%emt 0:00:25]} e5 {[%emt 0:01:21]} 7. d5 {[%emt 0:00:38]} Na6 {[%emt 0:15:00]} 8. Nge2 {[%emt 0:06:28]} Nc5 {[%emt 0:01:46]} 9. Qc2 {[%emt 0:02:59]} a5 {[%emt 0:09:30]} 10. g4 {[%emt 0:04:01]} h5 {[%emt 0:05:19]} 11. f3 {[%emt 0:08:57]} Nh7 {[%emt 0:02:45]} 12. O-O-O {[%emt 0:10:39]} h4 {[%emt 0:00:48]} 13. Kb1 {[%emt 0:05:29]} b6 {[%emt 0:02:02]} 14. Bg2 {[%emt 0:13:12]} g5 {[%emt 0:00:58]} 15. Nc1 {[%emt 0:03:17]} Ba6 {[%emt 0:06:02]} 16. b3 {[%emt 0:02:22]} Qe7 {[%emt 0:00:46]} 17. Rhe1 {[%emt 0:03:13]} Rfb8 {[%emt 0:02:46]} 18. Bf1 {[%emt 0:00:29]} Nf8 {[%emt 0:01:44]} 19. a3 {[%emt 0:06:11]} Ng6 {[%emt 0:04:05]} 20. Kb2 {[%emt 0:01:51]} Nf4 {[%emt 0:07:21]} 21. b4 {[%emt 0:02:48]} Nd7 {[%emt 0:01:17]} 22. Nb3 {[%emt 0:02:37]} Qe8 {[%emt 0:01:48]} 23. Nb5 {[%emt 0:03:34]} Bxb5 {[%emt 0:01:20]} 24. cxb5 {[%emt 0:00:06]} axb4 {[%emt 0:00:28]} 25. axb4 {[%emt 0:00:29]} Rb7 {[%emt 0:02:06]} 26. Ra1 {[%emt 0:00:31]} Qb8 {[%emt 0:07:11]} 27. Ra6 {[%emt 0:06:19]} Rxa6 {[%emt 0:02:43]} 28. bxa6 {[%emt 0:00:01]} Ra7 {[%emt 0:00:09]} 29. Qc6 {[%emt 0:08:53]} Qd8 {[%emt 0:00:47]} 30. Ra1 {[%emt 0:02:53]} Kh7 {[%emt 0:03:33]} 31. Ra2 {[%emt 0:01:17]} Nb8 {[%emt 0:05:54]} 32. Qb5 {[%emt 0:01:00]} Ng6 {[%emt 0:00:43]} 33. Kb1 {[%emt 0:00:47]} Bf6 {[%emt 0:02:44]} 34. Qc4 {[%emt 0:01:29]} Ne7 {[%emt 0:01:28]} 35. Nc1 {[%emt 0:01:22]} Nc8 {[%emt 0:01:42]} 36. Qc2 {[%emt 0:00:53]} Kg7 {[%emt 0:00:57]} 37. Bb5 {[%emt 0:00:30]} Ra8 {[%emt 0:00:22]} 38. Bf1 {[%emt 0:01:14]} Na7 {[%emt 0:00:18]} 39. Qc4 {[%emt 0:00:38]} Qd7 {[%emt 0:01:51]} 40. Nb3 {[%emt 0:00:37]} Bd8 {[%emt 0:01:03]} 41. Nc1 {[%emt 0:06:10]} Qc8 {[%emt 0:04:16]} 42. Qc2 {[%emt 0:04:15]} Qd7 {[%emt 0:00:42]} 43. Bd3 {[%emt 0:01:48]} Bf6 {[%emt 0:00:43]} 44. Ne2 {[%emt 0:00:56]} Bd8 {[%emt 0:02:13]} 45. Nc3 {[%emt 0:00:39]} Qe7 {[%emt 0:01:17]} 46. Nb5 {[%emt 0:04:03]} Nxb5 {[%emt 0:00:20]} 47. Bxb5 {[%emt 0:00:04]} Ra7 {[%emt 0:00:09]} 48. Qc4 {[%emt 0:01:25]} Qf6 {[%emt 0:00:42]} 49. Qe2 {[%emt 0:00:09]} Kh8 {[%emt 0:00:44]} 50. Kc2 {[%emt 0:00:39]} Kg7 {[%emt 0:00:21]} 51. Kd1 {[%emt 0:00:16]} Kh8 {[%emt 0:00:22]} 52. Ke1 {[%emt 0:00:11]} Kg7 {[%emt 0:00:10]} 53. Kf2 {[%emt 0:00:05]} Kh8 {[%emt 0:00:26]} 54. Qc4 {[%emt 0:00:12]} Qe7 {[%emt 0:00:32]} 55. Bc6 {[%emt 0:00:25]} Kg7 {[%emt 0:00:07]} 56. Qb5 {[%emt 0:03:44]} Kh8 {[%emt 0:01:50]} 57. Qc4 {[%emt 0:01:30]} Kg7 {[%emt 0:00:09]} 58. Ke2 {[%emt 0:02:22]} Kh8 {[%emt 0:01:11]} 59. Bb7 {[%emt 0:00:19]} Kg7 {[%emt 0:00:30]} 60. Rc2 {[%emt 0:00:39]} Qd7 {[%emt 0:02:27]} 61. b5 {[%emt 0:00:41]} Qe7 {[%emt 0:01:13]} 62. Bc8 {[%emt 0:00:55]} Qf6 {[%emt 0:04:49]} 63. Rc1 {[%emt 0:00:34]} Qe7 {[%emt 0:00:18]} 64. Bf2 {[%emt 0:00:19]} Qf6 {[%emt 0:00:14]} 65. Bf5 {[%emt 0:00:13]} Qe7 {[%emt 0:00:06]} 66. Qc3 {[%emt 0:00:24]} Kg8 {[%emt 0:01:44]} 67. Rb1 {[%emt 0:01:21]} Ra8 {[%emt 0:02:07]} 68. Kf1 {[%emt 0:02:47]} Ra7 {[%emt 0:00:09]} 69. Kg2 {[%emt 0:00:03]} Ra8 {[%emt 0:00:33]} 70. Kh2 {[%emt 0:00:39]} Ra7 {[%emt 0:00:12]} 71. Rc1 {[%emt 0:00:07]} Qe8 {[%emt 0:03:06]} 72. Qc4 {[%emt 0:00:20]} Qe7 {[%emt 0:00:37]} 73. Rc2 {[%emt 0:00:51]} Qe8 {[%emt 0:00:18]} 74. Be3 {[%emt 0:00:11]} Qe7 {[%emt 0:00:25]} 75. Bf2 {[%emt 0:00:51]} Qe8 {[%emt 0:00:25]} 76. Be3 {[%emt 0:05:05]} Qe7 {[%emt 0:00:05]} 77. Ra2 {[%emt 0:00:11]} Kg7 {[%emt 0:00:44]} 78. Qc3 {[%emt 0:00:18]} Kg8 {[%emt 0:00:09]} 79. Bc1 {[%emt 0:00:08]} Qe8 {[%emt 0:00:28]} 80. Rb2 {[%emt 0:00:04]} Ra8 {[%emt 0:00:44]} 81. Rb1 {[%emt 0:00:05]} Ra7 {[%emt 0:00:08]} 82. Qc4 {[%emt 0:00:05]} Kg7 {[%emt 0:00:24]} 83. Bb2 {[%emt 0:00:04]} Kg8 {[%emt 0:00:23]} 84. Ba1 {[%emt 0:00:07]} Qe7 {[%emt 0:01:00]} 85. Qc3 {[%emt 0:00:07]} f6 {[%emt 0:01:47]} 86. Qc4 {[%emt 0:00:15]} Kf8 {[%emt 0:02:28]} 87. Bc3 {[%emt 0:00:05]} Qe8 {[%emt 0:01:08]} 88. Be6 {[%emt 0:00:43]} Nd7 {[%emt 0:02:59]} 89. Bxd7 {[%emt 0:00:15]} Qxd7 {[%emt 0:00:06]} 90. Bd2 {[%emt 0:00:25]} Kg7 {[%emt 0:00:27]} 91. Be3 {[%emt 0:00:05]} Kf7 {[%emt 0:00:26]} 92. Rc1 {[%emt 0:00:08]} Kf8 {[%emt 0:00:32]} 93. Kg2 {[%emt 0:00:04]} Kf7 {[%emt 0:00:04]} 94. Kf2 {[%emt 0:00:18]} Kf8 {[%emt 0:00:11]} 95. Ke2 {[%emt 0:00:05]} Kf7 {[%emt 0:00:04]} 96. Kd3 {[%emt 0:01:14]} Kf8 {[%emt 0:00:18]} 97. Qb4 {[%emt 0:03:04]} Kf7 {[%emt 0:00:40]} 98. Rc6 {[%emt 0:00:05]} Ke7 {[%emt 0:02:02]} 99. Qa3 {[%emt 0:00:04]} Kf7 {[%emt 0:00:10]} 100. Bxb6 {[%emt 0:03:41]} cxb6 {[%emt 0:00:10]} 101. Qxd6 {[%emt 0:00:05]} Qxd6 {[%emt 0:00:21]} 102. Rxd6 {[%emt 0:00:02]} Ke7 {[%emt 0:00:17]} 103. Rc6 {[%emt 0:00:12]} Kd7 {[%emt 0:00:35]} 104. Kc4 {[%emt 0:00:06]} Ra8 {[%emt 0:00:40]} 105. d6 {[%emt 0:01:32]} Rxa6 {[%emt 0:01:00]} 106. bxa6 {[%emt 0:00:40]} Kxc6 {[%emt 0:00:07]} 107. a7 {[%emt 0:00:04]} Kb7 {[%emt 0:00:10]} 108. Kb5 {[%emt 0:00:08]} Kxa7 {[%emt 0:01:10]} 109. Kc6 {[%emt 0:00:04]} b5 {[%emt 0:00:21]} 110. Kxb5 {[%emt 0:00:08]} Kb7 {[%emt 0:00:10]} 111. Kc5 {[%emt 0:00:06]} Kc8 {[%emt 0:00:17]} 112. Kc6 {[%emt 0:00:24]} Ba5 {[%emt 0:00:08]} 113. d7+ {[%emt 0:00:15]} Kd8 {[%emt 0:00:08]} 114. Kd6 {[%emt 0:00:05]} Bb4+ {[%emt 0:00:05]} 115. Ke6 {[%emt 0:00:04]} Be7 {[%emt 0:00:05]} 116. Kf7 {[%emt 0:00:11]} Kxd7 {[%emt 0:00:08]} 117. Kg6 {[%emt 0:00:09]} Ke6 {[%emt 0:00:06]} 118. Kg7 {[%emt 0:00:03]} Ba3 {[%emt 0:00:07]} 119. Kg6 {[%emt 0:00:04]} Bf8 {[%emt 0:00:05]} 120. Kh7 {[%emt 0:00:08]} Kf7 {[%emt 0:00:14]} 121. Kh8 {[%emt 0:00:07]} Bh6 {[%emt 0:00:47]} 122. Kh7 {[%emt 0:00:05]} Bg7 {[%emt 0:00:06]} 123. f4 {[%emt 0:00:03]} exf4 {[%emt 0:00:09]} 124. e5 {[%emt 0:00:03]} Bf8 {[%emt 0:00:08]} 0-1

[Event "SWE-ch Junior 2019"]
[Site "Eskilstuna"]
[Date "2019.07.07"]
[Round "2.3"]
[White "Joensson, Jacob"]
[Black "Johnson, Daniel"]
[Result "1/2-1/2"]
[ECO "D60"]
[WhiteElo "1981"]
[BlackElo "2212"]
[Annotator "NA"]
[PlyCount "82"]
[EventDate "2019.07.06"]
[EventType "tourn"]
[EventCountry "SWE"]
[SourceTitle "playchess.com"]
[Source "ChessBase"]
[SourceQuality "1"]
[TimeControl "40/5400+30:1800+30"]

1. d4 {[%emt 0:00:00]} d5 {[%emt 0:02:14]} 2. c4 {[%emt 0:00:00]} e6 {[%emt 0:00:05]} 3. Nc3 {[%emt 0:00:00]} Be7 {[%emt 0:00:05]} 4. Nf3 {[%emt 0:00:00]} Nf6 {[%emt 0:00:05]} 5. Bg5 {[%emt 0:00:00]} O-O {[%emt 0:00:06]} 6. e3 {[%emt 0:00:01]} b6 {[%emt 0:00:06]} 7. Bd3 {[%emt 0:00:48]} Bb7 {[%emt 0:02:32]} 8. O-O {[%emt 0:01:44]} dxc4 {[%emt 0:04:22]} 9. Bxc4 {[%emt 0:00:08]} Nbd7 {[%emt 0:00:41]} 10. Qe2 {[%emt 0:01:08]} a6 {[%emt 0:02:19]} 11. a4 {[%emt 0:01:26]} h6 {[%emt 0:05:18]} 12. Bh4 {[%emt 0:02:23]} c5 {[%emt 0:02:06]} 13. Rfd1 {[%emt 0:01:24]} Qe8 {[%emt 0:07:47]} 14. Rac1 {[%emt 0:04:10]} cxd4 {[%emt 0:08:48]} 15. exd4 {[%emt 0:06:29]} Bd6 {[%emt 0:19:03]} 16. Ne5 {[%emt 0:12:00]} Nd5 {[%emt 0:09:25]} 17. Nxd5 {[%emt 0:34:19]} exd5 {[%emt 0:02:53]} 18. Nxd7 {[%emt 0:02:27]} Qxd7 {[%emt 0:00:44]} 19. Bb3 {[%emt 0:00:30]} Bc6 {[%emt 0:08:43]} 20. Qf3 {[%emt 0:06:43]} Rac8 {[%emt 0:08:02]} 21. Bg3 {[%emt 0:12:52]} Bxg3 {[%emt 0:03:29]} 22. hxg3 {[%emt 0:00:20]} Bxa4 {[%emt 0:01:13]} 23. Bxa4 {[%emt 0:00:23]} Qxa4 {[%emt 0:00:07]} 24. Qxd5 {[%emt 0:00:13]} Rfd8 {[%emt 0:04:36]} 25. b3 {[%emt 0:06:33]} Qb4 {[%emt 0:02:31]} 26. Rxc8 {[%emt 0:00:50]} Rxc8 {[%emt 0:00:13]} 27. Qb7 {[%emt 0:01:09]} Rd8 {[%emt 0:00:27]} 28. Qxa6 {[%emt 0:00:53]} Qxb3 {[%emt 0:02:53]} 29. Qd3 {[%emt 0:00:39]} Qd5 {[%emt 0:02:34]} 30. Qf3 {[%emt 0:00:33]} Qxf3 {[%emt 0:00:41]} 31. gxf3 {[%emt 0:00:05]} Kf8 {[%emt 0:00:10]} 32. Kf1 {[%emt 0:00:22]} Ke7 {[%emt 0:00:49]} 33. Ke2 {[%emt 0:00:19]} Kd6 {[%emt 0:00:41]} 34. Kd3 {[%emt 0:00:25]} Ra8 {[%emt 0:00:28]} 35. Rb1 {[%emt 0:02:39]} Ra3+ {[%emt 0:00:35]} 36. Ke2 {[%emt 0:00:42]} Ra6 {[%emt 0:00:32]} 37. Kd3 {[%emt 0:00:39]} Ra3+ {[%emt 0:00:22]} 38. Ke2 {[%emt 0:00:06]} Ra2+ {[%emt 0:00:39]} 39. Ke3 {[%emt 0:00:10]} Ra3+ {[%emt 0:00:29]} 40. Ke2 {[%emt 0:00:07]} Ra2+ {[%emt 0:00:07]} 41. Ke3 {[%emt 0:30:08]} Ra3+ {[%emt 0:30:13]} 1/2-1/2